bitfinex-derivatives/quotes_ETHF0:USTF0_20260207
["timestamp","ask_amount","ask_price","bid_price","bid_amount"]
[1770451566460,3.0719418,2030.9,2030.3,0.00394134]
[1770451567066,8.00700209,2030.8,2030.3,0.00394134]
[1770451567371,3.06700209,2030.7,2030.3,1e-08]
[1770451567573,0.00493971,2030.9,2030.3,1e-08]
[1770451567871,3.0719418,2030.9,2030.3,1e-08]
[1770451569071,3.06700209,2031.2,2030.3,1.10435908]
[1770451569975,2.89441771,2032.0,2030.7,1.08058723]
[1770451570172,2.89441771,2031.5,2030.7,1.08058723]
[1770451570370,2.89441771,2031.9,2030.7,1.08058723]
[1770451571273,0.00437072,2032.0,2030.3,1e-08]
[1770451571274,2.89441771,2031.7,2030.3,1e-08]
[1770451571665,2.89441771,2031.7,2030.7,1.0514181]
[1770451571872,2.89441771,2031.7,2030.6,0.24639]
[1770451572069,2.89441771,2031.7,2030.3,1e-08]
[1770451572671,2.89441771,2031.3,2030.3,1.02031826]
[1770451572869,2.89441771,2031.9,2030.5,1.02424306]
[1770451573068,2.89441771,2031.9,2030.7,1.27062306]
[1770451573773,2.89441771,2031.7,2030.7,1.27062306]
[1770451574176,2.89441771,2031.3,2030.4,1.00956378]
[1770451576673,2.89441771,2031.5,2030.4,1.00956378]
[1770451577071,2.89441771,2031.5,2030.7,0.96276272]
[1770451577274,2.89441771,2031.9,2030.8,0.96276272]
[1770451578273,7.83441771,2031.7,2030.8,0.96276272]
[1770451578479,2.89441771,2031.6,2030.8,0.96276272]
[1770451579486,2.89441771,2031.6,2030.8,1.20913272]
[1770451579688,2.89441771,2031.6,2030.9,0.93636802]
[1770451579890,2.89441771,2031.6,2030.8,0.24637]
[1770451580386,2.89441771,2031.4,2030.8,0.24637]
[1770451580784,2.89441771,2031.3,2030.4,0.92218145]
[1770451581088,2.89441771,2031.3,2030.5,0.90797088]
[1770451581687,7.16567975,2031.6,2030.3,1e-08]
[1770451581688,2.89441771,2031.6,2030.9,1.15433088]
[1770451582493,2.89441771,2031.9,2031.0,0.89394271]
[1770451582693,2.89441771,2031.8,2031.0,0.89394271]
[1770451582993,2.89441771,2031.8,2030.9,0.24636]
[1770451583193,2.89441771,2031.8,2030.9,1.03737257]
[1770451585394,7.83441771,2031.7,2030.9,1.03737257]
[1770451585595,2.89441771,2031.6,2030.9,1.03737257]
[1770451586491,2.89441771,2031.6,2030.9,0.24636]
[1770451586690,2.89441771,2031.1,2030.3,0.24643001]
[1770451587688,2.89441771,2031.0,2030.3,0.24643001]
[1770451588095,2.89441771,2031.0,2030.3,1.00710219]
[1770451588291,2.89441771,2031.3,2030.4,0.76067218]
[1770451588496,2.89441771,2031.3,2030.5,0.76067218]
[1770451589093,2.89441771,2031.6,2030.5,0.76067218]
[1770451589297,2.89441771,2031.6,2030.8,0.99481817]
[1770451589594,2.89441771,2031.5,2030.8,0.24636]
[1770451591391,2.89441771,2031.5,2030.3,1e-08]
[1770451591392,2.89441771,2031.8,2031.0,0.24634]
[1770451591987,2.89441771,2031.6,2031.0,0.24634]
[1770451592188,2.89441771,2031.6,2030.5,0.71593786]
[1770451592391,2.89441771,2031.1,2030.3,0.96236787]
[1770451593300,2.89441771,2031.1,2030.3,0.24643001]
[1770451595589,11.06154069,2031.9,2030.3,0.24643001]
[1770451595590,2.89441771,2031.2,2030.3,0.24643001]
[1770451596198,2.89441771,2031.2,2030.4,0.7295704]
[1770451597399,2.89441771,2031.2,2030.5,0.51836204]
[1770451597594,2.89441771,2031.2,2030.6,0.51836204]
[1770451599195,2.89441771,2031.2,2030.5,0.2464]
[1770451599494,2.89441771,2031.2,2030.6,0.49964701]
[1770451600398,2.89441771,2031.2,2030.6,0.74603701]
[1770451601104,2.89441771,2031.2,2030.6,0.24639]
[1770451601698,12.10567975,2031.6,2030.3,0.4713845]
[1770451601699,4.94,2030.9,2030.3,1e-08]
[1770451601900,2.87022875,2030.7,2030.3,1e-08]
[1770451602307,2.87022875,2030.7,2030.0,0.77314486]
[1770451603295,2.87022875,2030.7,2030.0,0.77747052]
[1770451603701,2.87022875,2030.5,2029.4,0.24654]
[1770451603896,2.87022875,2029.9,2028.9,3.53084515]
[1770451604199,2.87022875,2029.9,2028.9,0.94936728]
[1770451604608,2.87022875,2029.8,2028.9,0.72409203]
[1770451604906,2.87022875,2029.7,2028.9,0.72388365]
[1770451605104,2.87022875,2029.4,2028.9,0.00521626]
[1770451605404,2.87022875,2029.5,2028.6,0.4711803]
[1770451605606,2.87022875,2029.5,2028.5,0.68051238]
[1770451605806,2.87022875,2029.5,2028.3,0.24667]
[1770451606304,2.87022875,2029.5,2028.3,0.25186816]
[1770451606503,2.87022875,2029.1,2028.3,0.74031009]
[1770451607005,2.87022875,2029.5,2028.7,0.64309002]
[1770451607206,2.87022875,2029.5,2028.7,0.88972002]
[1770451607606,2.87022875,2029.5,2028.7,0.24663]
[1770451607810,2.87022875,2029.5,2028.3,0.49364009]
[1770451607811,2.87022875,2029.5,2028.8,0.87847675]
[1770451608006,0.00592799,2029.8,2029.0,0.63186675]
[1770451608007,2.87615674,2029.8,2029.0,0.63186675]
[1770451608315,2.87615674,2029.8,2029.2,0.63186675]
[1770451608504,2.87022875,2030.0,2029.2,0.63186675]
[1770451608807,2.87022875,2030.0,2029.3,0.63186675]
[1770451609200,2.87022875,2030.3,2029.5,0.24652]
[1770451609403,2.87644731,2030.3,2029.4,0.62279877]
[1770451609703,2.87644731,2030.3,2028.6,3.96261787]
[1770451609704,2.87022875,2030.6,2029.7,0.62279877]
[1770451610006,2.87022875,2030.6,2029.6,0.24651]
[1770451610710,2.87524112,2030.6,2029.6,0.24651]
[1770451611312,2.87524112,2030.6,2029.6,0.84766799]
[1770451612510,2.87022875,2030.5,2029.6,0.84766799]
[1770451612912,2.87022875,2030.4,2029.6,0.24651]
[1770451614306,0.00501237,2030.6,2029.1,0.59005346]
[1770451614307,2.87022875,2030.1,2029.1,0.59005346]
[1770451614507,2.87022875,2030.5,2029.4,0.59005346]
[1770451614708,2.87022875,2030.5,2029.5,0.83658346]
[1770451614912,2.87022875,2030.5,2029.6,0.56958023]
[1770451615408,2.87022875,2030.4,2029.6,0.56958023]
[1770451616015,2.87022875,2030.4,2029.7,0.55874924]
[1770451617707,2.87022875,2030.4,2029.9,0.79334484]
[1770451617912,2.37e-06,2030.6,2030.2,0.5483439]
[1770451618116,2.87022875,2031.0,2030.3,0.24643]
[1770451618315,2.87022875,2031.0,2030.3,0.7947739]
[1770451618615,2.87022875,2031.8,2030.5,0.5483439]
[1770451619011,2.87022875,2031.7,2030.5,0.5483439]
[1770451619419,2.87022875,2031.7,2029.9,0.00584144]
[1770451619420,2.87022875,2031.7,2030.7,0.53327061]
[1770451619817,2.87022875,2031.7,2030.6,0.24639]
[1770451620017,2.87022875,2031.7,2030.6,0.76902232]
[1770451620516,0.00567852,2031.8,2031.1,0.76896232]
[1770451620710,2.87022875,2032.3,2031.4,0.2463]
[1770451621017,2.87022875,2032.3,2031.4,1.5233126]
[1770451621414,2.87022875,2032.3,2030.9,1.2770126]
[1770451621620,2.87022875,2032.2,2030.9,1.2770126]
[1770451621820,2.87022875,2032.2,2030.9,0.00375204]
[1770451622019,2.87022875,2032.2,2030.9,1.31445195]
[1770451622221,2.87022875,2032.2,2030.9,1.56081195]
[1770451623019,2.87022875,2032.2,2030.9,1.31445195]
[1770451623720,2.87022875,2032.2,2031.1,0.24633]
[1770451624021,2.87022875,2031.7,2030.4,0.24642]
[1770451624218,2.87022875,2031.2,2029.7,1.54504383]
[1770451624720,2.87022875,2031.1,2029.4,1.28266685]
[1770451624912,7.16567975,2031.4,2029.4,0.00417536]
[1770451624913,7.81022875,2030.6,2029.4,0.00417536]
[1770451625117,7.81022875,2030.6,2029.0,0.24659]
[1770451625118,2.87022875,2030.4,2029.0,0.24659]
[1770451625614,2.87022875,2030.3,2029.0,0.24659]
[1770451626019,2.87022875,2030.3,2028.3,0.46866017]
[1770451626020,2.73656139,2029.8,2028.3,0.71533017]
[1770451626316,2.73656139,2029.5,2028.4,1.28249669]
[1770451626724,2.73656139,2029.5,2028.3,0.46866017]
[1770451627021,2.73656139,2029.4,2028.3,0.00507453]
[1770451628215,0.0055164,2030.3,2028.3,0.00507453]
[1770451628216,2.73656139,2029.7,2028.5,1.49776515]
[1770451628717,2.73656139,2029.7,2028.7,1.25111515]
[1770451629225,2.73656139,2029.7,2028.9,1.23765393]
[1770451629619,2.73568702,2030.0,2028.9,1.48425393]
[1770451629914,2.73568702,2030.0,2029.1,1.22925409]
[1770451630311,2.73568702,2030.0,2029.2,1.47580409]
[1770451630515,2.74120342,2030.3,2029.2,0.24655]
[1770451630717,2.74120342,2030.3,2028.9,1.22925409]
[1770451631013,2.74120342,2030.3,2028.6,1.23718186]
[1770451631214,2.73568702,2030.2,2028.5,1.48383186]
[1770451631619,2.73568702,2030.2,2028.5,0.24665]
[1770451631817,2.73568702,2030.2,2028.5,1.47420671]
[1770451632116,2.73568702,2030.2,2028.3,0.00507453]
[1770451632117,2.73568702,2030.2,2028.7,1.22863548]
[1770451632620,2.73568702,2030.2,2029.2,1.22863548]
[1770451633121,2.73568702,2030.2,2029.2,1.47519548]
[1770451633622,2.73568702,2030.2,2029.2,0.24656]
[1770451634216,2.73568702,2030.2,2029.2,1.44836711]
[1770451636213,2.73568702,2030.2,2029.2,0.24656]
[1770451637221,6.4e-06,2030.3,2029.8,1.15323425]
[1770451637419,2.73568702,2031.3,2029.8,1.39972425]
[1770451637724,2.73568702,2031.3,2030.0,2.0850877]
[1770451637925,2.73568702,2031.3,2030.0,0.24647]
[1770451638322,2.73568702,2031.3,2030.0,2.32357273]
[1770451638524,2.74130989,2031.3,2030.0,0.25221301]
[1770451638922,2.73568702,2031.1,2030.0,0.25221301]
[1770451639121,2.73568702,2031.1,2030.0,0.00574301]
[1770451639319,2.73568702,2031.0,2030.0,0.00574301]
[1770451641220,2.73568702,2030.9,2029.5,0.24652]
[1770451641425,2.73568702,2030.4,2029.1,2.07909983]
[1770451641721,2.73568702,2030.4,2029.0,2.3165489]
[1770451642322,4.94,2030.3,2029.7,2.07110521]
[1770451642525,2.73568702,2030.7,2029.7,2.07110521]
[1770451642726,2.73568702,2030.7,2029.9,2.31758521]
[1770451643522,2.74130989,2031.3,2030.2,2.32674469]
[1770451644918,4.94,2031.2,2029.5,0.24653]
[1770451645117,2.73568702,2030.9,2029.6,2.12258317]
[1770451645323,2.73568702,2030.7,2029.6,2.12258317]
[1770451646228,2.73568702,2030.6,2029.6,2.12258317]
[1770451646422,2.73568702,2030.5,2029.5,0.24653]
[1770451646624,2.73568702,2030.5,2029.5,2.36112204]
[1770451646824,2.73568702,2030.4,2029.5,2.36112204]
[1770451647025,2.73568702,2030.4,2029.5,0.24653]
[1770451647931,2.73568702,2030.3,2029.5,0.24653]
[1770451648328,2.73568702,2030.2,2029.5,0.24653]
[1770451648632,2.73568702,2030.2,2029.5,0.24652]
[1770451650436,2.73568702,2030.4,2029.7,2.07514313]
[1770451651528,2.73568702,2031.0,2030.0,2.55919823]
[1770451651729,2.73568702,2030.8,2029.9,0.24647]
[1770451652339,2.73568702,2030.6,2029.9,0.24647]
[1770451652527,2.73568702,2030.5,2029.3,2.80574823]
[1770451652731,2.73568702,2030.0,2029.0,0.00609865]
[1770451652933,7.67568702,2029.6,2029.0,0.00609865]
[1770451653134,0.00493092,2029.6,2028.7,2.80582823]
[1770451653333,2.74061794,2029.6,2028.7,2.80582823]
[1770451653534,2.74061794,2029.6,2028.8,2.80580823]
[1770451653735,2.74061794,2029.6,2028.8,0.24661]
[1770451654037,2.74061794,2029.6,2028.8,0.25154479]
[1770451654236,2.73568702,2029.5,2028.8,0.25154479]
[1770451654438,7.67568702,2029.5,2028.8,0.00493479]
[1770451654629,2.73568702,2029.4,2028.8,0.00493479]
[1770451654834,2.73568702,2029.4,2028.4,2.55919823]
[1770451654835,2.73568702,2029.3,2028.4,2.55919823]
[1770451655135,2.73568702,2029.0,2028.2,0.68685101]
[1770451655940,2.73568702,2029.0,2028.2,0.69167611]
[1770451656240,2.61868391,2028.9,2028.2,0.69167611]
[1770451656635,2.61868391,2028.8,2028.2,0.69167611]
[1770451657530,2.61868391,2029.4,2028.4,4.07839968]
[1770451657837,2.61868391,2029.4,2028.3,0.24667]
[1770451659842,2.61868391,2029.4,2028.3,2.87295608]
[1770451660631,2.61868391,2029.4,2028.6,2.61972428]
[1770451660942,2.61868391,2029.4,2028.8,2.87368837]
[1770451661334,2.62361483,2029.6,2028.8,2.87368837]
[1770451661742,0.00493092,2029.6,2029.0,2.62707837]
[1770451662244,2.62361483,2029.6,2028.8,0.24661]
[1770451662635,2.62361483,2029.6,2028.2,4.77007579]
[1770451662840,2.61868391,2029.4,2028.2,3.30623852]
[1770451663144,2.61868391,2029.4,2028.3,2.86123241]
[1770451663343,2.61868391,2029.4,2028.4,2.86122241]
[1770451663547,2.61868391,2029.4,2028.6,2.86119241]
[1770451663735,2.62361483,2029.6,2028.7,2.86118241]
[1770451664632,2.61868391,2029.3,2028.2,0.44499611]
[1770451664838,2.61868391,2029.3,2028.2,3.03742865]
[1770451665039,2.61868391,2029.3,2028.2,0.44499611]
[1770451665040,2.61868391,2029.2,2028.2,0.44499611]
[1770451665233,7.55868391,2029.2,2028.2,0.0048251]
[1770451665440,7.55868391,2029.1,2028.2,0.0048251]
[1770451665641,2.61868391,2029.0,2028.1,0.24669]
[1770451665838,2.61868391,2028.9,2028.1,0.24669]
[1770451666743,2.61868391,2028.9,2028.1,2.82091668]
[1770451667338,2.61868391,2029.5,2028.8,0.24661]
[1770451667940,0.00493092,2029.6,2029.0,2.56196781]
[1770451668341,0.00493092,2029.6,2029.0,2.80855781]
[1770451668642,2.61868391,2030.4,2029.3,2.56196781]
[1770451668845,2.61868391,2030.4,2029.1,4.07839968]
[1770451668846,2.61868391,2030.4,2029.6,2.80847781]
[1770451669244,2.61868391,2030.3,2029.2,2.59647734]
[1770451669445,2.62466885,2030.3,2029.2,2.60082921]
[1770451670046,2.62466885,2030.3,2029.2,2.84738921]
[1770451670947,2.62466885,2030.3,2029.2,0.25091187]
[1770451671145,2.61868391,2030.0,2029.2,0.00435187]
[1770451671346,7.55868391,2029.9,2029.2,0.00435187]
[1770451671544,2.61868391,2029.8,2028.7,2.57925874]
[1770451672341,2.61868391,2029.7,2028.7,2.57925874]
[1770451672549,2.61868391,2029.7,2028.8,0.24661]
[1770451672849,7.55868391,2029.6,2028.7,0.00448881]
[1770451673250,2.61868391,2029.5,2028.7,0.00448881]
[1770451673545,2.61868391,2029.4,2028.7,0.00448881]
[1770451673751,2.61868391,2029.3,2028.7,0.00448881]
[1770451674249,16.09863732,2030.0,2028.4,0.24666]
[1770451674250,2.61868391,2029.1,2028.4,0.24666]
[1770451674444,2.61868391,2028.9,2028.0,3.00585406]
[1770451674644,2.61868391,2028.9,2028.1,2.56550921]
[1770451674839,2.61868391,2028.8,2028.0,0.68704485]
[1770451675039,2.62440098,2028.8,2028.0,0.69262629]
[1770451676141,2.61868391,2028.5,2027.5,2.56213958]
[1770451677051,2.61868391,2028.5,2027.5,3.00143166]
[1770451677255,2.61868391,2028.5,2027.5,3.00570931]
[1770451677748,2.61868391,2028.7,2027.9,2.56283251]
[1770451680455,2.61868391,2028.7,2027.8,0.24673]
[1770451681147,2.61868391,2028.7,2027.5,0.44356973]
[1770451681352,7.55868391,2028.6,2027.5,0.00427765]
[1770451681546,2.61868391,2028.5,2027.5,0.00427765]
[1770451681758,2.61868391,2028.5,2027.5,0.45020692]
[1770451681948,2.61868391,2028.5,2027.5,0.00427765]
[1770451682751,2.61868391,2028.3,2027.5,0.00427765]
[1770451683050,2.61868391,2028.0,2027.1,2.56071998]
[1770451683258,2.61868391,2028.0,2027.1,3.01212226]
[1770451683846,2.61868391,2028.0,2027.1,3.01614324]
[1770451684451,2.61868391,2028.0,2027.3,2.55455739]
[1770451684649,9.92640894,2028.6,2027.7,2.55455739]
[1770451684854,2.61868391,2028.6,2027.7,2.80129739]
[1770451685754,2.61868391,2028.6,2027.7,0.24674]
[1770451687161,2.50561326,2028.8,2027.9,2.78321575]
[1770451687451,2.50561326,2028.8,2027.4,2.53650575]
[1770451687646,2.50561326,2028.8,2027.4,2.78328575]
[1770451688058,4.94,2028.5,2027.4,2.78328575]
[1770451688251,2.49989619,2028.4,2027.4,2.78328575]
[1770451688653,2.49989619,2028.4,2027.4,0.24678]
[1770451688855,0.00571707,2028.8,2027.4,0.24678]
[1770451688856,2.49989619,2028.1,2027.4,0.24678]
[1770451689163,2.49989619,2028.0,2027.1,2.9855293]
[1770451689759,2.49989619,2028.0,2027.4,0.24678]
[1770451690564,2.43367964,2028.4,2027.4,2.75253872]
[1770451690764,7.37367964,2028.3,2027.4,2.75253872]
[1770451691063,7.37367964,2028.3,2027.1,4.53382294]
[1770451691064,2.43367964,2028.7,2027.6,2.50575872]
[1770451691267,2.43367964,2028.7,2027.7,2.75249872]
[1770451691468,2.43367964,2028.7,2027.7,0.24674]
[1770451691865,2.43367964,2028.4,2027.7,0.24674]
[1770451692066,2.43367964,2028.4,2027.7,2.75249872]
[1770451692670,2.43367964,2028.4,2027.7,0.24674]
[1770451692868,2.43367964,2028.1,2027.1,0.45542326]
[1770451693074,2.43367964,2027.9,2027.1,0.45542326]
[1770451694568,4.94,2027.8,2026.5,0.24689]
[1770451694872,2.43367964,2027.2,2026.5,0.67120704]
[1770451695268,7.30772503,2027.7,2026.6,2.50575872]
[1770451695462,2.43367964,2027.6,2026.8,2.75260872]
[1770451695661,2.43741065,2027.6,2026.8,2.75652816]
[1770451695866,2.43741065,2027.6,2027.0,2.75258872]
[1770451696276,2.43741065,2027.6,2027.0,0.24683]
[1770451696576,13.12752398,2028.6,2027.4,2.50575872]
[1770451696577,2.43367964,2028.1,2027.4,2.50575872]
[1770451696971,2.43367964,2028.1,2027.4,2.75251872]
[1770451697173,2.43367964,2028.1,2027.4,0.24676]
[1770451697370,2.43367964,2028.1,2027.4,2.74691163]
[1770451697569,2.4379422,2028.1,2027.4,2.74691163]
[1770451698577,2.43367964,2028.3,2027.8,2.49402653]
[1770451699471,2.43367964,2028.3,2027.7,0.24672]
[1770451699673,2.43875176,2028.3,2027.7,0.24672]
[1770451699875,2.43875176,2028.3,2027.3,2.49022591]
[1770451699876,2.43367964,2028.1,2027.3,2.49022591]
[1770451700070,2.43367964,2028.1,2027.0,4.33678169]
[1770451700071,4.94,2027.6,2026.8,0.00391944]
[1770451700377,2.43367964,2027.7,2026.2,0.4103307]
[1770451700378,2.43367964,2026.6,2026.2,0.4103307]
[1770451700573,2.43367964,2026.5,2025.8,0.24695]
[1770451700872,2.43367964,2026.4,2025.8,0.24695]
[1770451701068,2.43367964,2026.3,2025.8,0.37518989]
[1770451701274,0.00472394,2026.3,2025.8,2.48908164]
[1770451701470,2.43367964,2026.6,2025.9,2.73154776]
[1770451701779,2.43367964,2026.6,2025.9,0.24694]
[1770451702280,2.43367964,2026.4,2025.8,0.00447388]
[1770451702469,2.43915324,2026.4,2025.8,0.00447388]
[1770451703680,2.43367964,2026.7,2026.0,2.4888435]
[1770451703874,2.43367964,2026.7,2025.9,0.24694]
[1770451704072,2.43367964,2026.7,2025.9,2.72940377]
[1770451704678,2.43731452,2026.7,2025.9,2.72940377]
[1770451705274,2.43731452,2026.7,2025.8,0.00447388]
[1770451705582,2.43731452,2026.7,2025.8,2.72074153]
[1770451705777,2.43731452,2026.7,2026.0,2.70989281]
[1770451707183,2.43731452,2026.7,2026.0,0.24692]
[1770451707482,2.43731452,2026.7,2025.8,2.508822]
[1770451707882,2.43731452,2026.7,2025.8,0.00447388]
[1770451708074,2.43367964,2026.6,2025.4,2.91334683]
[1770451708383,2.43367964,2026.6,2025.4,0.41608398]
[1770451708584,2.43367964,2026.6,2025.4,2.49796526]
[1770451708785,2.43367964,2026.6,2025.4,2.9103888]
[1770451709286,2.43367964,2026.5,2025.4,0.41808894]
[1770451709783,2.43367964,2026.5,2025.4,2.92384766]
[1770451709986,2.43367964,2026.5,2025.5,2.50575872]
[1770451710380,2.43367964,2026.5,2025.4,0.66508894]
[1770451710884,2.43367964,2026.5,2025.5,2.75274872]
[1770451711287,2.43367964,2026.5,2025.5,0.24699]
[1770451712191,2.43367964,2026.5,2025.5,2.75274872]
[1770451712386,2.43367964,2026.4,2025.5,2.75274872]
[1770451712885,2.43367964,2026.3,2025.5,0.24699]
[1770451713089,2.43367964,2026.3,2025.5,2.75274872]
[1770451713493,2.43367964,2026.2,2025.5,0.24699]
[1770451715691,2.43086564,2026.0,2025.4,0.41808894]
[1770451715990,2.43086564,2026.2,2025.4,2.75283882]
[1770451716392,2.43086564,2026.4,2025.6,2.33474988]
[1770451716586,2.43086564,2026.4,2025.8,2.33474988]
[1770451716791,0.00363488,2026.7,2025.8,2.58169988]
[1770451716792,2.43086564,2026.6,2025.8,2.58169988]
[1770451716991,2.43086564,2026.5,2025.8,0.24695]
[1770451717197,2.43086564,2026.2,2025.4,2.75283882]
[1770451719490,2.43086564,2026.2,2025.4,2.99983882]
[1770451721394,2.43086564,2026.2,2025.5,2.33474988]
[1770451722591,2.43086564,2026.2,2025.6,0.24697]
[1770451722797,2.43086564,2026.2,2025.6,2.58171988]
[1770451723093,2.43086564,2026.2,2025.6,0.24697]
[1770451724793,2.43086564,2026.0,2025.6,0.24697]
[1770451725803,4.94363488,2026.7,2025.6,0.24697]
[1770451725996,4.94,2026.3,2025.6,0.24697]
[1770451726192,2.43086564,2026.2,2025.6,0.24697]
[1770451730904,2.43086564,2026.2,2025.6,2.58171988]
[1770451731300,2.43086564,2026.2,2025.6,0.24697]
[1770451732103,2.43086564,2026.2,2025.6,2.58171988]
[1770451733108,2.43086564,2026.5,2026.0,2.33474988]
[1770451733705,2.43450052,2026.7,2026.0,2.33474988]
[1770451734206,0.00363488,2026.7,2026.2,2.33474988]
[1770451734406,2.43450052,2026.7,2026.2,2.33474988]
[1770451735511,2.43450052,2026.7,2026.1,0.24691]
[1770451739714,2.43086564,2026.5,2025.6,2.58172988]
[1770451740303,2.43086564,2026.1,2025.6,0.24698]
[1770451740511,2.43086564,2026.1,2025.6,0.24125634]
[1770451741212,2.43086564,2026.1,2025.4,0.0056654]
[1770451741511,2.43086564,2026.1,2024.6,2.33474988]
[1770451741512,2.43086564,2025.6,2024.6,2.33474988]
[1770451741712,2.43086564,2025.6,2024.8,2.33474988]
[1770451741905,2.43086564,2025.6,2024.8,2.75625546]
[1770451742304,2.43086564,2025.6,2024.8,2.7615497]
[1770451742505,2.43086564,2025.6,2024.9,2.33474988]
[1770451742812,2.43086564,2025.6,2024.8,0.67386982]
[1770451743008,2.43086564,2025.3,2024.8,0.42679982]
[1770451743205,2.43086564,2025.3,2024.8,0.00529424]
[1770451743713,2.43086564,2025.2,2024.4,0.24712]
[1770451743907,2.43086564,2025.2,2024.4,3.00018064]
[1770451744114,2.43086564,2025.1,2024.4,0.66543076]
[1770451744513,2.43086564,2025.0,2024.4,0.66543076]
[1770451744714,2.43451737,2025.0,2024.4,0.25321362]
[1770451744916,2.43086564,2024.9,2024.0,2.33474988]
[1770451745316,2.43086564,2024.5,2023.7,2.58195988]
[1770451745814,2.48380921,2024.4,2023.7,0.24721]
[1770451746113,4.946,2024.0,2023.3,0.43043684]
[1770451746320,4.946,2024.0,2023.0,0.24729]
[1770451746321,2.48380921,2023.9,2023.0,2.54714198]
[1770451746916,2.48380921,2023.9,2023.1,0.24728]
[1770451747116,2.48380921,2023.8,2023.1,0.25174016]
[1770451747316,2.48380921,2023.7,2023.1,0.25174016]
[1770451747516,2.48380921,2023.7,2023.1,0.66640469]
[1770451748316,2.48380921,2024.5,2023.2,2.29985198]
[1770451748515,2.48380921,2024.5,2023.5,2.29985198]
[1770451748712,2.48380921,2024.5,2023.7,2.29985198]
[1770451748923,2.48380921,2024.5,2023.1,0.41912469]
[1770451749122,2.48380921,2024.5,2023.1,2.73552974]
[1770451749520,2.48380921,2024.5,2023.1,0.41912469]
[1770451750021,2.48380921,2024.5,2023.1,2.73552974]
[1770451750218,2.48380921,2024.5,2023.2,2.56366505]
[1770451750620,2.48380921,2024.5,2023.4,2.31640505]
[1770451751214,2.46674227,2024.9,2023.6,3.07126301]
[1770451751422,2.46674227,2024.9,2023.4,2.31640505]
[1770451751423,2.46674227,2024.9,2023.7,2.31640505]
[1770451751624,2.46674227,2024.9,2023.9,0.24718]
[1770451751928,2.46674227,2024.9,2024.0,2.31640505]
[1770451752117,2.46674227,2024.9,2023.9,0.24718]
[1770451752319,2.46674227,2024.7,2023.9,0.24718]
[1770451752720,2.46674227,2024.7,2024.1,2.31640505]
[1770451752920,2.46674227,2024.9,2024.1,2.31640505]
[1770451753114,2.46674227,2024.7,2024.0,0.24717]
[1770451754325,2.46674227,2024.7,2024.0,2.56357505]
[1770451755122,2.46674227,2024.9,2024.0,2.56357505]
[1770451757228,2.46674227,2024.9,2024.2,2.31640505]
[1770451758032,2.470394,2025.0,2024.2,2.56354505]
[1770451758732,2.470394,2025.0,2024.2,0.24714]
[1770451759322,2.470394,2025.0,2024.2,2.56354505]
[1770451761033,2.470394,2025.0,2024.3,2.56354505]
[1770451764834,2.470394,2025.0,2024.5,2.31640505]
[1770451766332,2.470394,2025.0,2024.4,0.24712]
[1770451767239,2.46674227,2024.7,2023.7,2.56361505]
[1770451767538,2.46674227,2024.7,2023.9,2.56358505]
[1770451768137,2.46674227,2024.7,2023.9,0.24718]
[1770451769032,2.46674227,2024.7,2023.9,2.56358505]
[1770451769736,2.46674227,2024.6,2023.9,0.24718]
[1770451770236,4.946,2024.7,2023.4,2.56364505]
[1770451770237,2.46674227,2024.4,2023.4,2.56364505]
[1770451772433,2.46674227,2024.3,2023.4,2.56364505]
[1770451773035,2.46674227,2024.3,2023.7,2.56361505]
[1770451776041,2.20315416,2024.6,2023.7,2.56361505]
[1770451777141,2.20315416,2024.6,2023.7,2.31640505]
[1770451777342,2.20315416,2024.6,2023.9,0.24718]
[1770451778946,2.20315416,2024.6,2023.2,2.8904363]
[1770451779245,12.25372503,2023.9,2023.1,0.00446016]
[1770451779642,2.20315416,2023.6,2023.1,0.00446016]
[1770451780139,2.20315416,2023.3,2022.3,2.35270227]
[1770451780342,2.20315416,2023.3,2022.2,2.60009227]
[1770451780738,2.20315416,2023.0,2022.2,2.60009227]
[1770451781039,2.20852843,2023.0,2022.2,0.25247599]
[1770451781245,7.14915416,2022.9,2022.2,0.00508599]
[1770451781454,2.20315416,2022.7,2022.2,0.00508599]
[1770451782040,2.20315416,2022.5,2021.7,2.60015227]
[1770451782449,2.20315416,2022.5,2021.6,2.79811773]
[1770451783048,2.20315416,2022.5,2021.6,2.8026078]
[1770451786043,0.00537427,2023.0,2021.6,2.8026078]
[1770451786251,2.20852843,2023.0,2022.3,5.42943317]
[1770451786444,2.20852843,2023.0,2022.4,2.35270227]
[1770451786646,2.20315416,2024.2,2022.7,2.60003227]
[1770451787146,23.6124818,2024.7,2022.9,3.0767309]
[1770451787147,2.20315416,2024.1,2022.9,3.0767309]
[1770451787451,2.20315416,2023.7,2022.9,0.2473]
[1770451787642,2.20714388,2023.7,2022.9,0.2473]
[1770451787847,2.20714388,2023.7,2022.9,2.60000227]
[1770451788348,2.20315416,2023.5,2022.4,2.35270227]
[1770451788540,2.20315416,2023.5,2022.7,2.35270227]
[1770451790049,2.20714388,2023.7,2022.9,2.35270227]
[1770451790249,2.20315416,2024.1,2023.0,2.59999227]
[1770451790553,2.20315416,2024.1,2023.3,2.35270227]
[1770451791348,2.20315416,2024.6,2023.6,2.35270227]
[1770451791856,2.20315416,2024.6,2023.6,2.59991227]
[1770451792452,2.20933584,2024.6,2023.6,2.59991227]
[1770451794445,2.20933584,2024.6,2023.4,2.35270227]
[1770451794650,2.20933584,2024.6,2023.3,0.00454201]
[1770451794851,2.20933584,2024.6,2023.3,2.35724428]
[1770451796250,2.20933584,2024.6,2023.4,2.35270227]
[1770451797251,7.15533584,2024.6,2023.4,2.35270227]
[1770451797456,2.20315416,2024.5,2023.4,2.59994227]
[1770451799161,2.20315416,2024.5,2023.6,2.35270227]
[1770451800460,2.20315416,2024.5,2023.6,2.59992227]
[1770451803064,2.20315416,2023.9,2023.3,0.00454201]
[1770451803254,2.20315416,2023.8,2023.3,0.00055229]
[1770451803459,2.20315416,2023.8,2023.3,2.35325456]
[1770451803963,2.20315416,2024.1,2023.3,2.35325456]
[1770451804162,2.20315416,2024.4,2023.3,2.35325456]
[1770451804557,2.20315416,2024.3,2023.3,2.60051456]
[1770451804757,2.20315416,2024.3,2023.3,2.35325456]
[1770451805158,2.20315416,2024.5,2023.5,2.59993227]
[1770451805560,2.20315416,2024.2,2023.5,0.24723]
[1770451805863,2.20315416,2024.2,2023.5,2.61634821]
[1770451808171,2.20315416,2024.2,2023.5,0.24723]
[1770451808364,2.28398584,2023.9,2023.3,0.00055229]
[1770451808663,2.28398584,2023.8,2023.3,0.00055229]
[1770451808856,2.28398584,2023.7,2023.3,0.00055229]
[1770451809061,2.28398584,2023.7,2022.9,2.36911821]
[1770451809267,2.28398584,2023.7,2022.8,0.24731]
[1770451810065,2.33627846,2023.6,2022.8,2.51006148]
[1770451810264,2.33627846,2023.6,2022.8,0.25180863]
[1770451810460,2.33627846,2023.6,2022.8,0.00449863]
[1770451810666,2.33627846,2023.3,2022.3,2.25825285]
[1770451811869,2.33627846,2023.2,2022.3,2.26287813]
[1770451812566,0.24718,2024.0,2021.9,4.35927415]
[1770451812567,2.33627846,2022.9,2021.9,2.25825285]